Cogmind - Beta 16.1 @@@ ROGUE MODE // 2026.01.03 @ 13:43:26 Player: C0-2MO Result: Destroyed by Shrapnel Trap Performance ------------- Evolutions (0) 0 Regions Visited (2) 400 Robots Destroyed (21) 105 Value Destroyed (339) 339 Prototype IDs (0) 0 Alien Tech Used (0) 0 Bonus (269) 269 TOTAL SCORE: 1113 Bonus ------- Follower Combat Kills 269 Cogmind --------- Core Integrity 0/250 Matter 293/300 Energy 98/100 System Corruption 0% Temperature Cool (1) Movement Walking (120) Location -10/Subcaves Parts ------- > --- POWER (1) -------- (None) > --- PROPULSION (2) --- Aluminum Leg > --- UTILITY (2) ------ Disposable Heat Sink > --- WEAPON (2) ------- Subdweller Laser Subdweller Machine Gun > --- INVENTORY (5) ---- Light Ion Engine High-capacity Storage Unit Battle Rifle Rocket Launcher Hammer Peak State ------------ > --- POWER ------------ Ion Engine > --- PROPULSION ------- Aluminum Leg Subdweller Monowheel > --- UTILITY ---------- Disposable Heat Sink High-capacity Storage Unit > --- WEAPON ----------- Subdweller Laser Battle Rifle > --- INVENTORY -------- Light Ion Engine Spread Laser Spread Laser Subdweller Machine Gun Rocket Launcher Hammer [Rating: 12] Favorites ----------- Power Ion Engine Engine Ion Engine Propulsion Aluminum Leg Leg Aluminum Leg Wheel Subdweller Monowheel Flight Unit VTOL Module Utility Seismic Detector Device Seismic Detector Storage High-capacity Storage Unit Weapon EM Pulse Gun Energy Gun EM Pulse Gun Ballistic Gun Light Assault Rifle Launcher Rocket Launcher Impact Weapon Hammer Build | -11 -10 -10 ------- Run | Yrd Mat Sub Slots Evolved . | . . . Power . | . . . Propulsion . | . . . Utility . | . . . Weapon . | . . . Parts Attached 27 | 2 18 7 Power 2 | . 2 . Engine 2 | . 2 . Core . | . . . Reactor . | . . . Propulsion 11 | . 9 2 Treads . | . . . Leg 4 | . 4 . Wheel 2 | . . 2 Hover . | . . . Flight 5 | . 5 . Utility 4 | 1 1 2 Device 2 | 1 . 1 Storage 2 | . 1 1 Processor . | . . . Hackware . | . . . Protection . | . . . Artifact . | . . . Weapon 10 | 1 6 3 Energy Gun 4 | 1 2 1 Energy Cannon . | . . . Ballistic Gun 4 | . 2 2 Ballistic Cannon . | . . . Launcher 1 | . 1 . Special Weapon . | . . . Impact Weapon 1 | . 1 . Slashing Weapon . | . . . Piercing Weapon . | . . . Special Melee Weapon . | . . . Unidentified Prototypes . | . . . Parts Lost 5 | . 1 4 Power 1 | . . 1 Propulsion 3 | . 1 2 Utility . | . . . Weapon 1 | . . 1 Highest Loss Streak 2 | . 1 2 To Critical Strikes . | . . . Average Backups 4 | . 4 5 Power . | . . 1 Propulsion . | . . . Utility . | . 1 . Weapon 2 | . 1 4 Tool/Special . | . . . Unused Backups 34 | 7 17 10 Power 4 | 1 2 1 Propulsion 10 | 3 5 2 Utility 12 | 1 6 5 Weapon 8 | 2 4 2 Tool/Special . | . . . Average Slot Usage (%) 79 | . 77 83 Engine 11 | . 10 13 Leg 9 | . 5 15 Wheel 2 | . . 5 Flight 12 | . 21 . Device 12 | . 11 12 Storage 4 | . 2 7 Energy Gun 10 | . 8 14 Ballistic Gun 10 | . 10 10 Impact Weapon 4 | . 5 2 Peak Build Rating 12 | 2 9 12 Average Rating 7 | 1 6 9 On Entrance 3 | . 2 7 Avg Prop Armor Cover (%) 10 | . 22 8 Naked Turns . | . . . Heaviest Build 52 | 3 12 52 Greatest Support 20 | 3 20 20 Greatest Overweight (x) 5 | . . 5 Average Overweight (x) . | . . 1 Largest Inventory Capacity 20 | 5 8 20 Average Capacity 8 | 5 5 13 Most Carried 6 | 5 5 6 Average Carried 4 | 1 4 5 Final Capacity 5 | 5 5 5 Final Carried 5 | 1 5 5 Class Distribution -------------------- 44% | Scavenger-Mutant 31% | Sprinter 23% | Mutant Dominant Class ---------------- Sprinter | -10/Materials Scavenger-Mutant | -10/Subcaves Resources | -11 -10 -10 ----------- Run | Yrd Mat Sub Matter Collected 657 | 220 250 187 Remotely . | . . . Salvage Created 593 | 168 363 62 Parts 43 | 12 24 7 Haulers Intercepted 2 | . 2 . Recyclers Shooed 1 | 1 . . Parts Field Recycled . | . . . Retrieved Matter . | . . . Parts Self-Destructed 12 | . . 12 Prevented . | . . . Parts Restored . | . . . Kills | -11 -10 -10 ------- Run | Yrd Mat Sub Combat Hostiles Destroyed 10 | . 8 2 Guns 6 | . 4 2 AOE 4 | . 4 . Classes Destroyed 10 | 2 7 1 Builder 1 | . 1 . Tunneler 3 | 3 . . Hauler 2 | . 2 . Recycler 1 | 1 . . Mechanic 1 | . 1 . Operator 1 | . 1 . Watcher 2 | . 2 . Swarmer 5 | . 5 . Grunt 3 | . 3 . Subdweller 2 | . . 2 Best Kill Streak 4 | 2 4 1 Combat Bots Only 3 | . 3 1 Max Kills in Single Turn 4 | 1 4 1 Gunslinging . | . . . Exploded 3 | . 3 . Melee . | . . . Uniques/NPCs Destroyed . | . . . Combat | -11 -10 -10 -------- Run | Yrd Mat Sub Hostile Shots Fired 70 | . 22 48 Missed 28 | . 10 18 Hits 42 | . 12 30 Projectile 42 | . 12 30 Damage Taken 928 | . 200 728 Core 252 | . 55 197 Absorbed by Shields . | . . . Core Remaining (%) 100 | 100 . . Volleys Fired 81 | 11 47 23 Largest 2 | 1 2 2 Hottest 98 | 40 98 93 Shots Fired 139 | 11 82 46 Gun 137 | 11 81 45 Cannon . | . . . Launcher 2 | . 1 1 Special . | . . . Kinetic 90 | . 68 22 Thermal 11 | . 1 10 Explosive 2 | . 1 1 Electromagnetic 36 | 11 12 13 Robot Hit Streak 12 | 3 12 8 Robot Miss Streak 10 | 1 6 10 Penetration Max . | . . . Secondary Targets 1 | . 1 . Max Gunslinging Chain 1 | . 1 . Shots Hit Robots 96 | 8 59 29 Core Hits 39 | 5 28 6 Critical Kills . | . . . Critical Parts Destroyed . | . . . Critical Strikes 2 | 1 . 1 Destroy 1 | . . 1 Corrupt 1 | 1 . . Melee Attacks 22 | . 8 14 Impact 22 | . 8 14 Slashing . | . . . Piercing . | . . . Sneak Attacks . | . . . Combat Hostiles . | . . . Follow-up Attacks . | . . . Damage Inflicted 1299 | 103 812 384 Guns 1054 | 103 567 384 Cannons . | . . . Explosions 214 | . 214 . Melee . | . . . Ramming 31 | . 31 . Kinetic 666 | . 427 239 Thermal 156 | . 47 109 Explosive 170 | . 170 . Electromagnetic 276 | 103 137 36 Impact . | . . . Slashing . | . . . Piercing . | . . . Highest Corruption . | . . . Average Corruption . | . . . Corruption Purged . | . . . Corruption Blocked . | . . . Overload Shots . | . . . Overflow Damage . | . . . Projectiles . | . . . Explosions . | . . . Melee . | . . . Knockbacks 1 | . 1 . Impact 1 | . 1 . Kinetic . | . . . Secondary . | . . . Self-Inflicted Damage 20 | . 20 . Shots 1 | . 1 . Rammed . | . . . Targets Rammed 4 | . 4 . Kicked 4 | . 4 . Crushed . | . . . Highest Temperature 52 | . 52 10 Average Temperature 12 | . 14 4 Received Heat Transfer 233 | . 66 167 Siege Activations . | . . . Martial Activations . | . . . Shielding Activations . | . . . Robots Disrupted . | . . . Combat Hostiles . | . . . Robots Corrupted . | . . . Combat Hostiles . | . . . Parts Fried 1 | . 1 . Impact Corruptions . | . . . Robots Melted . | . . . Combat Hostiles . | . . . Parts Melted . | . . . Heat Transferred 180 | . 55 125 Parts Sabotaged . | . . . Parts Stolen . | . . . Parts Stripped . | . . . Power Chain Reactions 1 | . 1 . Alert | -11 -10 -10 ------- Run | Yrd Mat Sub Maximum Alert Level . | . . . Low Security (%) 100 | 100 100 . Level 1 . | . . . Level 2 . | . . . Level 3 . | . . . Level 4 . | . . . Level 5 . | . . . High Security . | . . . Max Security . | . . . Peak Influence 182 | 10 182 . Initial . | . . . Average 69 | 2 77 . Influence Increases 790 | 20 584 186 Destroy 0b10 Robot/C 380 | . 320 60 Destroy 0b10 Robot/NC 55 | 20 35 . Destroy Leader 78 | . 78 . Allied During Kill 40 | . 34 6 Successful Hack 10 | . 10 . Select Force Hacks 60 | . 60 . Disable Machine 15 | . 15 . Destroy Structure 17 | . 17 . Lose Combat Pursuer 135 | . 15 120 Influence Decreases 790 | 20 414 356 Entered New Map 82 | . . 82 Time Decay 656 | 20 392 244 Lost Part 32 | . 2 30 Lost Ally 20 | . 20 . Squads Dispatched 3 | . 3 . Investigation 2 | . 2 . Extermination . | . . . Reinforcement 1 | . 1 . Assault . | . . . Garrison . | . . . Intercept . | . . . Searches Triggered . | . . . Construction Impeded . | . . . Haulers Reinforced . | . . . Active Scanning Responses . | . . . Cargo Convoy Interrupts . | . . . Stealth | -11 -10 -10 --------- Run | Yrd Mat Sub Distress Signals . | . . . Communications Jammed . | . . . Distress Signals . | . . . Times Spotted 35 | . 22 13 Peak Tracking Total 3 | . 3 3 Tactical Retreats 2 | . 1 1 Traps | -11 -10 -10 ------- Run | Yrd Mat Sub Traps Triggered 5 | . 2 3 Indirectly . | . . . Trap Hack Attempts . | . . . Triggered . | . . . Disarmed 6 | . 6 . Reprogrammed . | . . . Reused . | . . . Traps Extracted . | . . . Installed . | . . . Triggered . | . . . Machines | -11 -10 -10 ---------- Run | Yrd Mat Sub Machines Disabled 2 | . 1 1 Max in Single Turn 1 | . 1 1 Machines Repaired . | . . . Machines Dismantled . | . . . Machines Sabotaged . | . . . Overloaded Fab Kills . | . . . Hacking | -11 -10 -10 --------- Run | Yrd Mat Sub Machines Accessed 9 | . 9 . Terminals 7 | . 7 . Fabricators . | . . . Repair Stations . | . . . Recycling Units 2 | . 2 . Scanalyzers . | . . . Garrison Access . | . . . Total Hacks 31 | . 31 . Successful 18 | . 18 . Failed 12 | . 12 . Catastrophic . | . . . Database Lockouts 1 | . 1 . Manual 27 | . 27 . Terminals 24 | . 24 . Fabricators . | . . . Repair Stations . | . . . Recycling Units 7 | . 7 . Scanalyzers . | . . . Garrison Access . | . . . Terminal Hacks 5 | . 5 . Robot Analysis 1 | . 1 . Terminal Index 1 | . 1 . Locate Traps 1 | . 1 . Disarm Traps 1 | . 1 . Zone Layout 1 | . 1 . Fabricator Hacks . | . . . Repair Station Hacks . | . . . Recycling Unit Hacks . | . . . Scanalyzer . | . . . Garrison Access Hacks . | . . . Unauthorized Hacks 13 | . 13 . Terminals 9 | . 9 . Track 2 | . 2 . Botnet 2 | . 2 . Skim 5 | . 5 . Fabricators . | . . . Repair Stations . | . . . Recycling Units 4 | . 4 . Reject 1 | . 1 . Mask 1 | . 1 . Tunnel 2 | . 2 . Scanalyzers . | . . . Garrison Access . | . . . Data Cores Recovered . | . . . Used . | . . . Hacking Detections 7 | . 7 . Full Trace Events . | . . . Feedback Events . | . . . Feedback Blocked . | . . . Robot Schematics Acquired . | . . . Robots Built . | . . . Authchips . | . . . Time . | . . . Total Robot Build Rating . | . . . Part Schematics Acquired . | . . . Parts Built . | . . . Authchips . | . . . Time . | . . . Total Part Build Rating . | . . . Part Studies Acquired . | . . . Parts Repaired . | . . . Time . | . . . Parts Recycled . | . . . Recycled Matter . | . . . Retrieved Matter . | . . . Retrieved Components . | . . . Parts Scanalyzed . | . . . Part Schematics Acquired . | . . . Parts Damaged . | . . . Bothacking | -11 -10 -10 ------------ Run | Yrd Mat Sub Used RIF Installer . | . . . Robots Hacked . | . . . Non-combat . | . . . Combat . | . . . Robot Hacks Applied . | . . . Relay Couplers Released . | . . . Fabnet Peak Effective % . | . . . Robots Rewired . | . . . Allies Hacked . | . . . Hacks Repelled . | . . . Allies | -11 -10 -10 -------- Run | Yrd Mat Sub Total Allies 2 | 1 1 . Largest Group 1 | 1 1 1 Highest-Rated Group 38 | 30 38 38 Highest-Rated Ally 38 | 30 38 38 Total Orders . | . . . Ally Attacks 52 | . 29 23 Total Damage 762 | . 389 373 Kills 13 | . 8 5 Allies Corrupted . | . . . Allies Melted . | . . . Intel | -11 -10 -10 ------- Run | Yrd Mat Sub Active Infowar (turns) 857 | 20 837 . Seismic 857 | 20 837 . Robot Analysis Total 1 | . 1 . Derelict Logs Recovered 2 | . . 2 Drone Launches . | . . . Drone Recoveries . | . . . Exploration | -11 -10 -10 ------------- Run | Yrd Mat Sub Turns Passed 1870 | 118 1036 716 Spaces Moved 2006 | 112 1587 307 Core 156 | 112 44 . Treads . | . . . Legs 265 | . 130 135 Wheels 172 | . . 172 Hover . | . . . Flight 1413 | . 1413 . Fastest Speed 32 | 50 32 110 Average Speed 58 | 50 40 151 Slowest Speed 470 | 50 120 470 Overloaded Moves . | . . . Propulsion Burnouts . | . . . Robots Hopped 20 | . 20 . Potential Cave-ins . | . . . Cave-ins Triggered . | . . . Exploration Rate (%) 39 | 3 98 17 Regions Visited 2 Branch Regions 1 Pre-discovered Areas 2 | . 2 . Known Exits Taken 1 | . 1 . Unknown Exits Taken 1 | 1 . . Scrap Searched . | . . . Spaces Dug 19 | . . 19 Terrain Destroyed 35 | . 15 20 Melee 6 | . . 6 Projectile 1 | . . 1 AOE 28 | . 15 13 Terrain Rammed . | . . . Walls Destroyed . | . . . Machines Disabled . | . . . Actions | -11 -10 -10 --------- Run | Yrd Mat Sub Total 2528 | 165 1878 485 Wait 329 | 25 182 122 Move 1964 | 111 1546 307 Hop 20 | . 20 . Pick Up 30 | 8 20 2 Fast Attach 20 | 2 13 5 Attach 4 | . 3 1 Detach 5 | . 4 1 Swap 9 | . 4 5 Drop 39 | 8 27 4 Fire 81 | 11 47 23 Melee 22 | . 8 14 Ram . | . . . Kick 4 | . 4 . Crush . | . . . Escape Stasis . | . . . Rewire 1 | . . 1 Trap . | . . . Miscellaneous . | . . . Route ------- -11/Scrapyard -10/Materials (discovered 6 exits: *Mat x3 / *Min x2 / *Sub) -10/Subcaves (discovered 3 exits: *Mat x2 / *Rec) History --------- Turn | Location | Event 4 | -11/Scrapyard | Discovered new exit (range 15) 67 | -11/Scrapyard | Botcube activated 79 | -11/Scrapyard | Botcube completed mutation into treaded form, armed with 2 guns. 119 | -11/Scrapyard | Entered Materials 119 | -10/Materials | Accompanied by 1 ally 238 | -10/Materials | Discovered new exit (range 16) 261 | -10/Materials | Discovered new exit (range 7) 281 | -10/Materials | Discovered new exit (range 12) 413 | -10/Materials | Discovered new exit (range 15) 552 | -10/Materials | Discovered new exit (range 5) 584 | -10/Materials | Found Botcube 611 | -10/Materials | Central database locked down 685 | -10/Materials | Identified exit to Subcaves 690 | -10/Materials | Build established: Sprinter 706 | -10/Materials | Identified exit to Mines 706 | -10/Materials | Identified exit to Materials 715 | -10/Materials | Learned location of 2 exits from Mines 716 | -10/Materials | Learned Storage trap positions 740 | -10/Materials | Learned location of 2 exits from Subcaves 917 | -10/Materials | Botcube activated 939 | -10/Materials | Botcube completed mutation into legged form, armed with 2 guns. 1155 | -10/Materials | Entered Subcaves 1155 | -10/Subcaves | Accompanied by 1 ally 1156 | -10/Subcaves | Approached by a straggling Scientist 1156 | -10/Subcaves | Identified exit to Recycling 1156 | -10/Subcaves | Identified exit to Materials 1158 | -10/Subcaves | Learned 4 Materials zone layouts 1184 | -10/Subcaves | Learned Materials terminal intel 1279 | -10/Subcaves | A swath of the cavern ceiling suddenly collapsed 1417 | -10/Subcaves | Discovered exit to Materials (range 5) 1471 | -10/Subcaves | Core integrity fell below 50% 1750 | -10/Subcaves | Build established: Scavenger-Mutant 1836 | -10/Subcaves | Ambushed by Subdweller buried in earth 1849 | -10/Subcaves | Core integrity fell below 20% 1871 | -10/Subcaves | Destroyed by Shrapnel Trap Last Messages --------------- 01616_ An expanding cloud of shrapnel blasts out in all directions. 01616_ Mutated Botcube destroyed. 01643_ Dropped Spread Laser. HY-VG6(c): "We're getting close, I can feel it." HY-VG6(c): "I think it's somewhere west of here" HY-VG6(c): "We're getting close, I can feel it." 01837_ TS-QKD(R): "ARGHSUB!" 01840_ HY-VG6(c) destroyed. 01842_ Ion Engine destroyed. 01848_ The unstable cave ceiling collapses. 01852_ TS-QKD(R) destroyed. 01860_ Acquired 39 matter. 01863_ Triggered Piercing Trap. 01863_ Spikes shoot up from the floor. 01863_ Critical hit (Impale). 01871_ Triggered Shrapnel Trap. 01871_ An expanding cloud of shrapnel blasts out in all directions. Map ----- +----------------------------------------------------+ | | | | | | | | | | | | | | | | | | | ?????????????????????????????????????????????????? | | ?????????????????????????????????????????????????? | | ?????????????????????????????????????????????????? | | ?????????????????????????????????????????????????? | | ?????????????????????????????????????????????????? | | ?????????????????????????????????????????????????? | | ?????????????????????????????????????????????????? | | ?????????????????????????????????????????????????? | | ?????????????????????????????????????????????????? | | ?????????????????????????????????????????????????? | | ?????????????????????????????????????????????????? | | ?????????????????????????????????????????????????? | | ???????????????###?###???????????????????????????? | | ???????????????# ## #####???????????????????????? | | ???????????????## !&# ;;;###??#####??????????????? | | ??????????????## & ;;####"""###????????????? | | ??????????????# *]! @#""# """ ########?????? | | ??????????????### # & [ ; " """ <%!%* "#?????? | | ????????????????#### ; [ "### #|! ""#####?? | | ???????????????????# ; ; ## #### "##"" ? | | ???????????????????####; ;;;;## # ### "&"""" "?? | | ???????????????????#"# ## ;# ### ## ""%#"" "?? | | ???????????????????## "###### ## ####&*%#?"???? | | ????????????????#### ## # #?# !!##????? | | ????????????????#"# " #?# & ##???? | | ????????????????## " #### #### ##??? | | ????????????????#" ######??## #### ##?? | | ????????????????#"###"#???????# " #?## #?? | | ????????????????##???##???????# """ #??# ##?? | | ?????????????????????????????# "##"" ##?## #?? | | ?????????????????????????????##### """ #?# ##?? | | ?????????????????????????????????#####"#### #??? | | ?????????????????????????????????????##### ###? | | ????????????????????????????????????????# #? | | ????????????????????????????????????????# #? | | ????????????????????????????????????????# ## | | ????????????????????????????????????????# # | | ????????????????????????????????????????# | | ????????????????????????????????????????## | | ????????????????????????????????????????## | | ????????????????????????????????????????# | +----------------------------------------------------+ Best States ------------- Heat Dissipation 25 Coolant Potential 50 Energy Generation 10 Energy Capacity 250 Matter Stores 300 Matter Capacity 300 Sight Range 16 Terrain Scan Density 10 Evasion (%) 63 Item Schematics ----------------- None Robot Schematics ------------------ None Fabricated ------------ Nothing Repaired ---------- Nothing Studied --------- None Alien Tech Used ----------------- None Achievements -------------- None Challenges ------------ None Game ------ Seed RagnarokMetaSword Manual? 0 Play Time 00:23:43 Cumulative 849.3 hours Start 2026.01.03 @ 13:21:05 End 2026.01.03 @ 13:43:26 Sessions 1 Manual Loads 0 Difficulty Rogue Special Mode None Game No. 337 Rogue 337 Adventurer 0 Explorer 0 Win Type - Total 87 Types 44/6/16/6/6/1/1/3/0/4 Lore% 97 Gallery% 91 Achievement% 85 Wizard Run 0 Options --------- Layout 1 ASCII 0 Keyboard 0 Movement Numpad Keybinds 0 Fullscreen 1 Font 24/Smallcaps Map View 50x35 Zoom Use 0% Tactical HUD 1 Map Filters NONE Filters NONE Steam 1 RUN: dcaf9c75-0c0b-409b-aaeb-1087972b5872